bitfinex-derivatives/quotes_ETHF0:USTF0_20250126
["timestamp","ask_amount","ask_price","bid_price","bid_amount"]
[1737907591578,0.00452141,3316.6,3316.4,2.11785]
[1737907598180,0.00452141,3316.6,3316.4,1.5147]
[1737907598181,0.60764141,3316.6,3316.4,1.5147]
[1737907598479,0.9995,3316.5,3316.4,1.5147]
[1737907598684,0.9995,3316.5,3316.4,2.11785]
[1737907599688,0.9995,3316.5,3316.4,1.5147]
[1737907599887,0.9995,3316.5,3316.4,2.11785]
[1737907600290,0.9995,3316.5,3316.4,0.60315]
[1737907600490,1.9761,3316.5,3316.4,0.60315]
[1737907600786,1.9761,3316.5,3316.3,0.7649573]
[1737907600988,2.57924,3316.5,3316.3,1.3681173]
[1737907601890,1.9761,3316.5,3316.3,1.3681173]
[1737907602389,1.9761,3316.5,3316.4,0.60315]
[1737907605693,1.9761,3316.5,3316.4,3.81095]
[1737907607086,10.1839,3316.5,3316.1,0.00452141]
[1737907607394,0.7649573,3316.2,3315.0,9.0]
[1737907607591,5.1839,3316.5,3315.0,9.0]
[1737907607592,0.60335,3315.3,3315.0,9.0]
[1737907607780,3.9727573,3315.6,3315.1,0.7649573]
[1737907607989,0.60337,3315.2,3315.1,0.7649573]
[1737907608587,0.60337,3315.2,3315.0,9.0]
[1737907609399,3.2078,3315.6,3315.0,9.0]
[1737907609585,0.60338,3315.1,3315.0,9.0]
[1737907615786,1.12838,3315.1,3315.0,9.0]
[1737907621797,0.60338,3315.1,3315.0,9.0]
[1737907622004,3.2078,3315.2,3315.0,9.0]
[1737907622194,3.81117,3315.2,3315.1,0.5229]
[1737907622790,3.2078,3315.2,3315.1,0.5229]
[1737907623201,3.81117,3315.2,3315.1,0.5229]
[1737907625605,3.81117,3315.2,3315.1,3.4999]
[1737907627195,0.60337,3315.2,3315.1,3.4999]
[1737907627390,0.60337,3315.2,3315.1,2.977]
[1737907627391,3.81117,3315.2,3315.1,2.977]
[1737907631502,0.60338,3315.1,3315.0,9.0]
[1737907637706,3.81118,3315.1,3315.0,9.0]
[1737907638614,0.60338,3315.1,3315.0,9.0]
[1737907638810,3.81118,3315.1,3315.0,9.0]
[1737907640106,3.81118,3315.1,3315.0,9.5027]
[1737907640307,3.81118,3315.1,3315.0,9.9903]
[1737907641602,3.2078,3315.1,3315.0,9.9903]
[1737907641909,3.81118,3315.1,3315.0,9.9903]
[1737907643307,3.81118,3315.1,3315.0,12.9673]
[1737907649319,3.81118,3315.1,3315.0,9.9903]
[1737907674821,3.2078,3315.1,3315.0,9.9903]
[1737907675124,3.2078,3315.1,3315.0,10.5937]
[1737907681017,3.81112,3315.5,3315.3,0.60334]
[1737907681223,3.2078,3315.5,3315.4,1.36818902]
[1737907683634,3.2078,3315.9,3315.4,0.76485902]
[1737907683930,3.2078,3315.9,3315.8,0.76485902]
[1737907685220,3.2078,3315.9,3315.8,1.36811902]
[1737907685523,4.44695902,3316.5,3315.8,3.97265902]
[1737907685723,0.60316,3316.4,3316.2,0.76485902]
[1737907685928,0.60316,3316.4,3316.3,1.5047]
[1737907686929,4.28524,3316.5,3316.3,1.5047]
[1737907687127,3.6821,3316.5,3316.3,1.5047]
[1737907687427,0.60315,3316.4,3316.3,1.5047]
[1737907690827,0.60317,3316.3,3316.2,2.977]
[1737907691132,0.60317,3316.3,3316.1,1.4795]
[1737907692021,0.60318,3316.2,3316.1,1.4795]
[1737907692621,0.60325,3315.9,3315.6,0.60328]
[1737907692822,0.60325,3315.9,3315.7,1.5087]
[1737907693632,3.2078,3316.1,3315.7,1.5087]
[1737907693832,3.81102,3316.1,3315.8,0.60325]
[1737907694229,3.2078,3316.1,3315.7,1.5087]
[1737907694429,0.60323,3316.0,3315.7,2.11197]
[1737907695634,3.2078,3316.1,3315.7,2.11197]
[1737907695829,0.60322,3316.0,3315.7,2.11197]
[1737907701439,0.60324,3315.9,3315.7,2.11197]
[1737907701632,0.60324,3315.9,3315.7,1.5087]
[1737907702033,0.4778,3316.0,3315.7,1.5087]
[1737907702243,0.60323,3316.0,3315.8,0.60326]
[1737907703240,0.60323,3316.0,3315.7,1.5087]
[1737907703537,0.60323,3316.0,3315.7,2.11196]
[1737907704040,3.2078,3316.1,3315.8,0.60324]
[1737907704041,3.81101,3316.1,3315.8,0.60324]
[1737907705045,0.60321,3316.1,3315.9,0.60324]
[1737907705340,0.60322,3316.0,3315.8,0.60325]
[1737907706440,0.60322,3316.0,3315.7,2.11197]
[1737907708647,0.4778,3316.2,3315.9,0.76446767]
[1737907708943,4.44656767,3316.5,3315.9,0.76446767]
[1737907708944,0.6032,3316.1,3315.9,0.76446767]
[1737907709338,0.6032,3316.1,3315.9,1.36769767]
[1737907709539,0.60322,3316.0,3315.9,0.76446767]
[1737907710040,3.6821,3316.5,3315.9,0.76446767]
[1737907710342,3.6821,3316.5,3316.3,0.76446767]
[1737907710642,3.6821,3316.5,3316.4,5.11385]
[1737907717345,3.6821,3316.5,3316.4,5.35861376]
[1737907717852,3.6821,3316.5,3316.4,5.11385]
[1737907720547,3.6821,3316.5,3316.4,2.13685]
[1737907733149,0.4743,3316.5,3316.4,2.13685]
[1737907733354,2.74118402,3316.9,3316.4,1.5337]
[1737907733554,2.74118402,3316.9,3316.8,2.21730819]
[1737907734657,2.74118402,3316.9,3316.8,1.36702091]
[1737907736764,0.00452141,3317.2,3317.1,0.60302]
[1737907737058,0.00452141,3317.2,3317.1,1.36696091]
[1737907738349,3.2078,3317.8,3317.1,1.36696091]
[1737907738553,3.2078,3317.8,3317.7,0.76394091]
[1737907739961,3.7346,3317.8,3317.7,0.76394091]
[1737907741256,3.7346,3317.8,3317.7,1.36685091]
[1737907741763,0.5268,3317.8,3317.7,1.36685091]
[1737907742057,0.52012141,3318.1,3318.0,0.60286]
[1737907742058,0.00452141,3318.1,3318.0,0.60286]
[1737907742257,3.71494091,3320.0,3318.0,0.60286]
[1737907742258,3.2078,3318.6,3318.0,1.52788182]
[1737907742561,3.2078,3318.6,3318.5,1.36671091]
[1737907743165,0.4915,3319.0,3318.5,1.36671091]
[1737907743166,3.6993,3319.0,3318.5,0.76394091]
[1737907743351,0.4915,3319.0,3318.9,0.76394091]
[1737907743765,0.4915,3319.0,3318.9,9.25763091]
[1737907744262,0.00452141,3319.1,3318.9,9.25763091]
[1737907744263,0.00452141,3319.1,3319.0,0.60268]
[1737907744660,0.00452141,3319.1,3319.0,2.21422225]
[1737907747367,0.00452141,3319.1,3319.0,10.10522225]
[1737907753372,0.00452141,3319.1,3319.0,2.21422225]
[1737907754362,0.00452141,3319.1,3318.8,0.4837]
[1737907754567,0.60268,3319.0,3318.7,1.61154225]
[1737907754767,1.009,3318.9,3318.7,1.61154225]
[1737907755068,0.5004,3318.9,3318.8,0.60271]
[1737907756263,0.00452141,3319.1,3319.0,0.60268]
[1737907756671,0.00452141,3319.1,3319.0,2.21422225]
[1737907757169,0.00452141,3319.1,3319.0,1.61154225]
[1737907757573,0.00452141,3319.1,3319.0,2.21422225]
[1737907759060,0.00452141,3319.1,3319.0,0.60268]
[1737907760366,0.00452141,3319.1,3319.0,2.21422225]
[1737907760567,3.2078,3319.5,3319.0,1.61154225]
[1737907760776,3.2078,3319.5,3319.4,2.21414225]
[1737907760970,3.2078,3319.5,3319.4,5.19114225]
[1737907761565,2.08869,3320.0,3319.8,0.60253]
[1737907761566,3.2078,3319.9,3319.8,0.60253]
[1737907761873,3.2078,3319.9,3319.8,1.61154225]
[1737907762375,3.2078,3319.9,3319.8,2.21407225]
[1737907762973,0.9998,3320.0,3319.9,0.60251]
[1737907763569,0.9998,3320.0,3319.8,1.61154225]
[1737907763769,0.9998,3320.0,3319.8,2.21406225]
[1737907768580,0.9998,3320.0,3319.5,4.81934225]
[1737907768774,1.6023,3320.0,3319.6,0.60256]
[1737907768972,0.9998,3320.0,3319.5,4.81934225]
[1737907769173,0.9998,3320.0,3319.7,0.60255]
[1737907770084,0.9998,3320.0,3319.8,0.60253]
[1737907770383,0.9998,3320.0,3319.7,0.60254]
[1737907770785,0.9998,3320.0,3319.8,0.5191]
[1737907771475,0.5248,3320.0,3319.8,0.5191]
[1737907771669,0.5248,3320.0,3319.9,0.60251]
[1737907771873,0.00452141,3320.2,3319.8,2.62664225]
[1737907772086,0.60698141,3320.2,3319.9,0.5201]
[1737907772585,0.00452141,3320.2,3319.9,0.5201]
[1737907772782,0.00452141,3320.2,3319.9,1.12261]
[1737907772984,0.60698141,3320.2,3319.9,1.12261]
[1737907773187,0.60698141,3320.2,3319.9,0.5201]
[1737907773379,0.60248,3320.1,3319.9,0.5201]
[1737907773584,0.60248,3320.1,3319.8,2.62664225]
[1737907776885,0.60248,3320.1,3319.8,3.22917225]
[1737907777288,0.00452141,3320.2,3319.8,3.22917225]
[1737907777584,0.00452141,3320.2,3320.1,1.61154225]
[1737907778786,0.00452141,3320.2,3320.1,2.21402225]
[1737907784491,0.00452141,3320.2,3320.1,1.61154225]
[1737907784788,0.60698141,3320.2,3320.1,1.61154225]
[1737907790486,0.00452141,3320.2,3320.1,2.21402225]
[1737907793686,0.00452141,3320.2,3320.1,1.61154225]
[1737907793893,0.00452141,3320.2,3320.1,2.21402225]
[1737907795592,0.60698141,3320.2,3320.1,1.61154225]
[1737907795895,1.11728141,3320.2,3320.1,1.61154225]
[1737907796204,0.60251,3319.9,3319.8,1.61154225]
[1737907796392,3.81031,3319.9,3319.8,1.61154225]
[1737907800298,3.2078,3319.9,3319.8,1.61154225]
[1737907800898,3.2078,3319.9,3319.8,2.21407225]
[1737907802902,3.2078,3319.9,3319.8,1.61154225]
[1737907804291,3.81031,3319.9,3319.8,1.61154225]
[1737907804492,3.2078,3319.9,3319.8,1.61154225]
[1737907806302,0.60257,3319.6,3319.5,1.61154225]
[1737907806495,3.2078,3319.9,3319.4,2.977]
[1737907806697,1.1137,3319.5,3319.4,2.977]
[1737907806998,3.7189,3319.5,3319.2,2.12104225]
[1737907807204,0.60262,3319.3,3319.2,2.12104225]
[1737907807594,0.60261,3319.4,3319.2,2.12104225]
[1737907807896,3.7189,3319.5,3319.2,2.12104225]
[1737907808294,3.7189,3319.5,3319.3,0.9959]
[1737907808703,4.32149,3319.5,3319.3,0.9959]
[1737907809002,3.7189,3319.5,3319.3,0.9959]
[1737907810102,4.3215,3319.5,3319.3,0.9959]
[1737907810494,3.7189,3319.5,3319.3,0.9959]
[1737907810699,0.5111,3319.5,3319.3,0.9959]
[1737907811207,1.11369,3319.5,3319.3,0.9959]
[1737907811394,0.60256,3319.7,3319.4,0.60259]
[1737907811597,0.60256,3319.7,3319.6,1.61154225]
[1737907812003,0.60254,3319.8,3319.6,1.61154225]
[1737907812298,0.4746,3319.9,3319.6,1.61154225]
[1737907812500,0.60255,3319.7,3319.6,1.61154225]
[1737907812999,0.4746,3319.9,3319.3,3.21005225]
[1737907813193,0.6026,3319.4,3319.3,2.60744225]
[1737907813798,0.4746,3319.5,3319.3,2.60744225]
[1737907813999,1.07719,3319.5,3319.3,3.21005225]
[1737907814705,1.07719,3319.5,3319.3,2.60744225]
[1737907814899,1.07719,3319.5,3319.3,3.21005225]
[1737907815200,0.60259,3319.5,3319.3,3.21005225]
[1737907815507,3.81037,3319.6,3319.3,3.21005225]
[1737907817202,3.2078,3319.6,3319.3,3.21005225]
[1737907817403,3.2078,3319.6,3319.5,0.60258]
[1737907817591,3.2078,3320.0,3319.5,0.60258]
[1737907817796,3.6878,3320.0,3319.7,1.61154225]
[1737907817994,3.6878,3320.0,3319.6,0.5168]
[1737907818196,0.60258,3319.5,3319.4,1.61154225]
[1737907818897,1.08258,3319.5,3319.4,1.61154225]
[1737907822208,0.60258,3319.6,3319.4,2.21414225]
[1737907822601,0.60258,3319.6,3319.4,1.61154225]
[1737907822906,0.60258,3319.6,3319.4,2.21414225]
[1737907823501,0.504,3319.9,3319.4,2.21414225]
[1737907823707,0.60258,3319.6,3319.4,1.61154225]
[1737907824108,0.60258,3319.6,3319.4,2.21413225]
[1737907824510,0.60258,3319.5,3319.4,1.61154225]
[1737907825304,0.60257,3319.6,3319.4,2.21414225]
[1737907826308,0.60257,3319.6,3319.4,1.61154225]
[1737907826902,0.60257,3319.6,3319.4,2.21414225]
[1737907828408,0.60258,3319.5,3319.4,1.61154225]
[1737907829309,0.504,3319.9,3319.1,1.61154225]
[1737907829310,3.2078,3319.6,3319.1,1.61154225]
[1737907829507,0.60264,3319.2,3319.1,1.61154225]
[1737907832212,0.60263,3319.3,3319.1,1.61154225]
[1737907832608,0.60263,3319.3,3319.2,0.5043]
[1737907837514,0.4968,3319.5,3319.2,0.5043]
[1737907837714,0.60261,3319.4,3319.2,0.5043]
[1737907838822,0.60262,3319.3,3319.2,0.5043]
[1737907840023,0.6026,3319.4,3319.1,1.61154225]
[1737907840920,3.2078,3319.2,3318.8,2.56574225]
[1737907841229,0.60277,3318.5,3318.4,0.4905]
[1737907841423,3.81057,3318.5,3318.4,0.4905]
[1737907841811,3.81057,3318.5,3318.2,1.61606366]
[1737907842021,0.504,3318.4,3318.2,2.11036366]
[1737907842321,1.1068,3318.4,3318.2,2.11036366]
[1737907842522,0.504,3318.4,3318.2,2.11036366]
[1737907842722,0.6028,3318.3,3318.2,2.11036366]
[1737907844925,0.6028,3318.3,3318.2,1.61606366]
[1737907846218,0.6028,3318.3,3318.2,0.00452141]
[1737907846817,1.1104,3318.3,3318.2,0.00452141]
[1737907848424,5.5076,3318.3,3317.6,1.61154225]
[1737907848624,3.81071,3317.7,3317.6,1.61154225]
[1737907850430,0.60295,3317.5,3317.4,0.5102]
[1737907856131,0.60297,3317.4,3317.3,0.00452141]
[1737907856433,1.10447,3317.4,3317.3,0.00452141]
[1737907858426,0.60297,3317.4,3317.3,0.00452141]
[1737907870640,0.60297,3317.4,3317.3,1.41e-06]
[1737907871438,4.1418,3317.4,3317.3,1.41e-06]
[1737907871941,4.74477,3317.4,3317.3,1.41e-06]
[1737907872441,9.74477,3317.4,3317.3,1.41e-06]
[1737907873931,4.74477,3317.4,3317.3,1.41e-06]
[1737907885748,5.22667,3317.4,3317.3,1.41e-06]
[1737907890058,10.22667,3317.4,3317.3,1.41e-06]
[1737907891355,3.01521,3317.1,3316.2,0.5028]
[1737907891550,3.81097,3316.3,3316.2,0.5028]
[1737907892252,0.60322,3316.0,3315.9,0.4928]
[1737907892458,0.60322,3316.0,3315.9,0.49732141]
[1737907893350,0.60322,3316.0,3315.9,1.41e-06]
[1737907898562,5.60322,3316.0,3315.9,1.41e-06]
[1737907899558,0.60322,3316.0,3315.9,1.41e-06]
[1737907903857,1.12732,3316.0,3315.9,1.41e-06]
[1737907906967,0.60322,3316.0,3315.9,1.41e-06]
[1737907909672,1.09842,3316.0,3315.9,1.41e-06]
[1737907911974,0.60338,3315.1,3315.0,0.5029]
[1737907922681,0.60353,3314.3,3314.2,2.977]
[1737907922975,0.60357,3314.1,3314.0,0.5241]
[1737907923983,0.60357,3314.1,3314.0,1.5235]
[1737907930988,3.2078,3314.3,3314.0,1.5235]
[1737907931191,0.60357,3314.1,3314.0,1.5235]
[1737907957802,0.60357,3314.1,3314.0,2.12708]
[1737907958306,0.60357,3314.1,3314.0,1.5235]
[1737907959206,0.60357,3314.1,3314.0,2.12708]
[1737907959401,0.60357,3314.1,3314.0,1.5235]
[1737907960003,0.60356,3314.2,3314.1,0.60357]
[1737907960803,0.60354,3314.3,3314.2,0.60353]
[1737907962100,0.60356,3314.2,3314.1,0.60356]
[1737907964302,0.60804141,3314.4,3314.3,0.60353]
[1737907964502,0.60804141,3314.4,3314.3,3.81133]
[1737907967311,0.60804141,3314.4,3314.3,3.2078]
[1737907970417,0.00452141,3314.4,3314.0,0.4755]
[1737907970715,1.36899284,3314.1,3314.0,0.4755]
[1737907976017,1.36899284,3314.1,3313.7,0.00452141]
[1737907976018,0.60362,3313.8,3313.7,0.00452141]
[1737907976220,1.36904284,3313.8,3313.7,0.00452141]
[1737907977226,0.60384,3312.6,3312.4,11.62366184]
[1737907977733,0.60384,3312.6,3312.5,5.30157266]
[1737907977923,0.60384,3312.6,3312.5,4.69771266]
[1737907980534,0.60384,3312.6,3312.4,11.62365184]
[1737907980535,0.60386,3312.5,3312.4,3.81166]
[1737907981131,0.60384,3312.6,3312.4,3.81166]
[1737907981434,0.60383,3312.7,3312.5,0.60386]
[1737907981939,0.60383,3312.7,3312.6,1.09554]
[1737907982129,2.12793583,3313.1,3312.6,0.4917]
[1737907982330,4.82613583,3313.4,3312.8,3.2078]
[1737907982625,0.60372,3313.3,3312.9,0.5013]
[1737907982825,0.60372,3313.3,3313.1,0.60374]
[1737907983029,3.2078,3313.4,3313.2,0.60373]
[1737907983235,3.81151,3313.4,3313.3,0.9865]
[1737907983939,2.10783583,3313.7,3313.3,0.9865]
[1737907984230,0.60369,3313.5,3313.3,1.5902]
[1737907984435,2.10783583,3313.7,3313.3,1.5902]
[1737907984436,0.60369,3313.4,3313.3,0.9865]
[1737907984734,0.60367,3313.6,3313.3,0.9865]
[1737907984929,0.60367,3313.6,3313.4,0.60368]
[1737907985129,0.60367,3313.6,3313.5,0.5013]
[1737907985831,1.61833583,3313.7,3313.3,0.9865]
[1737907985832,0.60369,3313.4,3313.3,0.9865]
[1737907991240,2.22198583,3313.7,3313.5,0.60367]
[1737907991540,2.22198583,3313.7,3313.6,0.5156]
[1737907993542,2.22198583,3313.7,3313.6,1.11926]
[1737907993837,2.22198583,3313.7,3313.6,0.5156]
[1737908001853,0.60365,3313.7,3313.6,0.5156]
[1737908002649,1.36932283,3313.7,3313.6,0.5156]
[1737908005446,0.60369,3313.4,3313.3,1.5902]
[1737908006956,0.60369,3313.4,3313.3,0.9865]
[1737908007655,0.60369,3313.4,3313.3,0.4946]
[1737908007954,1.11419,3313.4,3313.3,0.4946]
[1737908012850,3.7183,3313.4,3312.8,6.1848]
[1737908013147,1.36945283,3312.9,3312.8,3.6997]
[1737908014149,1.36945283,3312.9,3312.8,3.2078]
[1737908014359,0.60386,3312.5,3312.4,3.6997]
[1737908014561,1.36953283,3312.5,3312.4,3.6997]
[1737908015763,0.60389,3312.3,3312.1,0.5017]
[1737908015964,1.36956283,3312.3,3312.1,0.5017]
[1737908016664,1.36956283,3312.3,3312.2,0.52121426]
[1737908018663,2.22308121,3312.3,3312.2,0.52121426]
[1737908019261,2.22308121,3312.3,3312.2,0.00301426]
[1737908019868,3.17408121,3312.3,3312.2,0.00301426]
[1737908022169,0.60408,3311.3,3310.8,3.2078]
[1737908022363,0.60412,3311.1,3311.0,0.4975]
[1737908025565,0.60411,3311.2,3311.0,1.10162]
[1737908026365,1.61919121,3311.4,3310.8,3.2078]
[1737908026573,0.60415,3310.9,3310.8,3.2078]
[1737908027862,1.61919121,3311.1,3310.8,3.2078]
[1737908028059,3.6856,3311.3,3310.8,3.2078]
[1737908028060,3.2078,3311.3,3310.8,3.2078]
[1737908028265,1.61919121,3311.4,3310.8,3.2078]
[1737908028568,1.61919121,3311.4,3310.9,40.8]
[1737908028772,0.60413,3311.0,3310.9,40.8]
[1737908029266,0.60413,3311.1,3310.9,41.40414]
[1737908029471,0.60413,3311.1,3311.0,0.4937]
[1737908031374,2.22332121,3311.1,3311.0,0.4937]
[1737908031572,0.60415,3310.9,3310.8,3.2078]
[1737908034060,2.13309121,3311.1,3310.7,0.5084]
[1737908034265,0.60417,3310.8,3310.7,0.5084]
[1737908034874,0.60406,3311.4,3311.0,0.60412]
[1737908035177,0.60411,3311.2,3311.1,0.5196]
[1737908038180,0.60411,3311.2,3311.1,1.12371]
[1737908038880,0.60409,3311.3,3311.2,0.60408]
[1737908039276,0.60409,3311.3,3311.2,1.11688]
[1737908039576,0.60409,3311.3,3311.2,0.5128]
[1737908039778,0.60409,3311.3,3311.2,1.11689]
[1737908040490,2.58219121,3312.0,3311.6,0.60402]
[1737908040781,0.604,3311.8,3311.7,0.9944]
[1737908043275,1.61919121,3312.0,3311.7,0.9944]
[1737908043474,1.61919121,3312.0,3311.7,1.59839]
[1737908043671,0.60399,3311.8,3311.7,1.59839]
[1737908043872,1.61919121,3312.0,3311.7,0.9944]
[1737908044069,0.60396,3312.0,3311.7,0.9944]
[1737908044377,0.60396,3312.0,3311.8,0.60398]
[1737908044579,0.60399,3311.8,3311.7,0.9944]
[1737908044772,1.61919121,3312.3,3311.7,0.9944]
[1737908044971,0.60398,3311.9,3311.7,1.5984]
[1737908045171,1.61919121,3312.3,3311.7,0.9944]
[1737908045573,0.60396,3312.0,3311.8,1.09208]
[1737908046586,0.60397,3311.9,3311.8,1.09208]
[1737908047372,1.61919121,3312.3,3311.8,0.4881]
[1737908047883,0.60397,3311.9,3311.8,1.09209]
[1737908048284,0.60396,3312.0,3311.8,1.09209]
[1737908048477,1.61919121,3312.3,3311.8,1.09209]
[1737908048784,0.60397,3311.9,3311.8,1.09209]
[1737908048977,0.60397,3311.9,3311.8,0.4881]
[1737908049288,0.60181433,3311.9,3311.8,0.4881]
[1737908049489,1.61919121,3312.3,3311.8,0.4881]
[1737908049688,0.60397,3311.9,3311.8,1.09207]
[1737908049889,0.60396,3312.0,3311.8,1.09207]
[1737908050385,1.61919121,3312.3,3311.8,0.4881]
[1737908050684,0.60397,3311.9,3311.8,0.4881]
[1737908050984,0.60397,3311.9,3311.8,1.09209]
[1737908051185,0.60397,3311.9,3311.8,0.4881]
[1737908051584,0.60399,3311.8,3311.7,0.9944]
[1737908053192,0.60399,3311.8,3311.7,1.5078]
[1737908056386,1.61919121,3312.0,3311.6,3.2078]
[1737908056387,0.604,3311.7,3311.6,3.2078]
[1737908056587,1.1226,3311.7,3311.6,3.2078]
[1737908061397,0.60406,3311.4,3311.3,0.4977]
[1737908061589,0.60406,3311.4,3311.3,3.7055]
[1737908062887,0.60406,3311.4,3311.3,4.30958]
[1737908063293,0.60406,3311.4,3311.3,1.10178]
[1737908064095,0.60406,3311.4,3311.3,0.4977]
[1737908067391,4.83151951,3312.6,3311.3,5.32469121]
[1737908067596,4.83151951,3312.6,3311.9,3.2078]
[1737908067893,0.60393,3312.1,3312.0,1.55]
[1737908068297,0.60393,3312.1,3312.0,0.496]
[1737908069091,0.60395,3312.0,3311.9,3.2078]
[1737908075100,0.60395,3312.0,3311.8,1.5478]
[1737908075101,0.60404,3311.5,3311.4,3.2078]
[1737908076200,0.60406,3311.4,3311.3,0.4967]
[1737908078900,0.60408,3311.3,3311.2,0.5206]
[1737908080708,0.60413,3311.0,3310.9,3.2078]
[1737908082107,0.60413,3311.0,3310.9,4.2531]
[1737908084802,0.60413,3311.0,3310.9,1.0453]
[1737908086708,0.60413,3311.0,3310.9,1.64945]
[1737908087505,0.955,3311.5,3310.9,1.0453]
[1737908087905,0.60413,3311.0,3310.9,1.64944]
[1737908088713,0.60413,3311.0,3310.9,1.0453]
[1737908090411,2.14039121,3311.6,3310.9,1.0453]
[1737908090609,0.60409,3311.3,3310.9,1.0453]
[1737908090915,0.60409,3311.3,3311.1,0.6041]
[1737908091218,0.60409,3311.3,3311.2,0.4965]
[1737908091904,4.1618,3311.7,3311.3,0.60408]
[1737908092107,0.60404,3311.5,3311.4,0.4846]
[1737908093221,0.60404,3311.5,3311.4,1.08866]
[1737908093410,0.60404,3311.5,3311.4,0.4846]
[1737908097222,0.60404,3311.5,3311.4,1.08866]
[1737908097623,4.2539,3312.1,3311.6,0.60402]
[1737908097624,0.60401,3311.7,3311.6,0.60402]
[1737908098027,3.2078,3312.1,3311.4,0.4846]
[1737908098222,0.60398,3311.9,3311.8,0.60397]
[1737908098527,0.60398,3311.9,3311.8,3.81177]
[1737908098729,0.60398,3311.9,3311.8,3.2078]
[1737908099119,0.60398,3311.9,3311.8,3.7178]
[1737908101818,0.60398,3311.9,3311.8,4.32179]
[1737908102818,0.60398,3311.9,3311.8,3.7178]
[1737908104529,0.60398,3311.9,3311.4,3.6924]
[1737908104530,1.61919121,3311.9,3311.4,3.6924]
[1737908104730,0.60404,3311.5,3311.4,3.6924]
[1737908105925,0.60404,3311.5,3311.4,4.29646]
[1737908106433,0.60404,3311.5,3311.4,3.6924]
[1737908107032,1.61919121,3312.2,3311.4,3.6924]
[1737908107226,2.52153,3312.4,3311.4,3.6924]
[1737908107535,0.60399,3311.8,3311.7,0.60399]
[1737908107736,0.4947,3312.4,3311.4,3.6924]
[1737908107932,0.4947,3312.4,3312.0,0.60394]
[1737908107933,0.60393,3312.1,3312.0,0.60394]
[1737908109235,0.4947,3312.4,3311.6,0.5126]
[1737908109432,0.60393,3312.2,3311.8,3.2078]
[1737908109633,0.60393,3312.1,3312.0,0.60394]
[1737908110136,4.82699121,3312.5,3311.9,0.4768]
[1737908110334,0.6039,3312.3,3312.2,0.60391]
[1737908110536,0.6039,3312.3,3311.9,0.4768]
[1737908110835,5.43086121,3312.5,3312.0,0.60395]
[1737908111134,0.60389,3312.4,3312.2,0.6039]
[1737908111335,0.60389,3312.4,3312.3,0.4943]
[1737908111636,0.60389,3312.4,3312.3,1.09819]
[1737908111830,3.2078,3312.5,3312.3,0.4943]
[1737908112133,0.60388,3312.4,3312.3,1.09818]
[1737908112336,0.60388,3312.4,3312.3,0.4943]
[1737908114331,0.60395,3312.0,3311.9,1.08077]
[1737908116635,0.60395,3312.0,3311.9,0.4768]
[1737908119239,0.60395,3312.0,3311.8,3.2078]
[1737908119436,0.60397,3311.9,3311.8,3.2078]
[1737908119643,0.60404,3311.5,3311.4,0.9999]
[1737908120237,1.5099,3312.0,3311.4,0.9999]
[1737908120541,0.60403,3311.6,3311.5,0.60404]
[1737908125049,0.60404,3311.5,3311.4,0.9999]
[1737908125853,0.60404,3311.5,3311.4,1.60396]
[1737908127851,0.60403,3311.6,3311.5,0.60403]
[1737908128150,0.60401,3311.7,3311.6,0.60401]
[1737908128547,3.7177,3312.1,3311.4,0.9999]
[1737908128849,0.60403,3311.6,3311.5,0.60404]
[1737908129748,3.7177,3312.1,3311.5,0.60404]
[1737908129949,0.604,3311.7,3311.6,0.4903]
[1737908135858,0.604,3311.7,3311.6,1.09432]
[1737908136058,0.604,3311.7,3311.6,0.4903]
[1737908138971,3.2078,3312.1,3311.6,0.4903]
[1737908139172,0.60396,3312.0,3311.9,0.60396]
[1737908139766,3.2078,3312.1,3311.6,2.10949121]
[1737908139972,0.60386,3312.5,3312.4,0.60387]
[1737908140366,3.2078,3312.9,3312.5,0.60386]
[1737908140572,0.60383,3312.7,3312.5,0.60386]
[1737908141272,0.60383,3312.7,3312.5,3.81166]
[1737908142375,1.0113,3313.0,3312.5,3.81166]
[1737908142581,0.6083683,3312.6,3312.5,3.81166]
[1737908143786,0.0045283,3312.6,3312.5,3.81166]
[1737908151992,0.0045283,3312.6,3312.5,5.43085121]
[1737908158193,0.0045283,3312.6,3312.5,5.93965121]
[1737908164390,0.6083683,3312.6,3312.5,3.2078]
[1737908166298,0.6083683,3312.6,3312.5,6.1848]
[1737908171805,0.0045283,3312.6,3312.5,6.78866]
[1737908172208,0.0045283,3312.6,3312.5,3.81166]
[1737908190620,0.0045283,3312.6,3312.5,4.57764996]
[1737908193934,0.0045283,3312.6,3312.5,3.81166]
[1737908212749,0.0045283,3312.6,3312.5,4.57764996]
[1737908228652,0.0045283,3312.6,3312.5,3.81166]
[1737908230065,0.6083683,3312.6,3312.5,3.2078]
[1737908234761,0.0045283,3312.6,3312.5,3.2078]
[1737908236062,0.6083683,3312.6,3312.5,3.2078]
[1737908236263,0.0045283,3312.6,3312.5,3.2078]
[1737908236767,0.0045283,3312.6,3312.5,3.81166]
[1737908250571,0.0045283,3312.6,3312.5,4.57764996]
[1737908251975,0.0045283,3312.6,3312.5,45.37764996]
[1737908255672,0.0045283,3312.6,3312.5,4.57764996]
[1737908261288,0.0045283,3312.6,3312.5,12.46864996]
[1737908267193,0.0045283,3312.6,3312.5,4.57764996]
[1737908311721,0.9998,3313.0,3312.5,4.57764996]
[1737908311919,0.4995,3313.0,3312.9,4.57757996]
[1737908312120,0.521,3313.4,3313.1,0.60374]
[1737908312319,1.0481,3313.4,3313.2,0.76598996]
[1737908313526,1.0481,3313.4,3313.3,2.977]
[1737908313823,1.0481,3313.4,3313.3,3.58071]
[1737908314021,1.0481,3313.4,3313.3,4.09871]
[1737908314424,0.0045283,3313.6,3313.3,3.7258]
[1737908314624,0.0045283,3313.6,3313.5,1.36966996]
[1737908315325,3.2078,3314.4,3313.5,0.76598996]
[1737908315521,3.2078,3314.4,3314.2,0.76598996]